fUST/lending_fUST_20241205
["ID","MTS","AMOUNT","RATE_DAILY","PERIOD"]
[344297063,1733331061700,-653.89,0.00025753,7]
[344297064,1733331061709,-523.19,0.00025753,7]
[344297065,1733331061718,-500.0,0.00025753,7]
[344297066,1733331061727,-500.0,0.00025753,7]
[344297067,1733331061737,-500.0,0.00025753,7]
[344297068,1733331061750,-500.0,0.00025753,7]
[344297069,1733331061759,-500.0,0.00025753,7]
[344297070,1733331061777,-500.0,0.00025753,7]
[344297071,1733331061795,-2252.96,0.00025753,7]
[344297072,1733331061809,-1103.9,0.00025753,7]
[344297073,1733331061825,-200.0,0.00025753,7]
[344297074,1733331061841,-3483.6,0.00025753,7]
[344297075,1733331061857,-543.03105249,0.00025753,7]
[344297076,1733331061873,-500.0,0.00025753,7]
[344297077,1733331061892,-998.79,0.00025753,7]
[344297078,1733331061909,-858.72,0.00025753,7]
[344297079,1733331061925,-1250.23,0.00025753,7]
[344297080,1733331061939,-500.0,0.00025753,7]
[344297081,1733331061956,-500.0,0.00025753,7]
[344297082,1733331061973,-1250.59,0.00025753,7]
[344297083,1733331061986,-674.47,0.00025753,7]
[344297084,1733331062003,-500.0,0.00025753,7]
[344297085,1733331062018,-417.127008,0.00025753,7]
[344297086,1733331062035,-1017.66,0.00025753,7]
[344297087,1733331062052,-417.127008,0.00025753,7]
[344297088,1733331062070,-1138.79,0.00025753,7]
[344297089,1733331062087,-634.97,0.00025753,7]
[344297090,1733331062100,-500.0,0.00025753,7]
[344297091,1733331062111,-500.0,0.00025753,7]
[344297092,1733331062125,-3400.47,0.00025753,7]
[344297093,1733331062142,-500.0,0.00025753,7]
[344297094,1733331062156,-500.0,0.00025753,7]
[344297095,1733331062170,-2026.96,0.00025753,7]
[344297096,1733331062185,-500.0,0.00025753,7]
[344297097,1733331062198,-500.0,0.00025753,7]
[344297098,1733331062211,-500.0,0.00025753,7]
[344297099,1733331062224,-500.0,0.00025753,7]
[344297100,1733331062238,-1041.8,0.00025753,7]
[344297101,1733331062255,-1115.9,0.00025753,7]
[344297102,1733331062268,-500.0,0.00025753,7]
[344297103,1733331062281,-591.81,0.00025753,7]
[344297104,1733331062294,-500.0,0.00025753,7]
[344297105,1733331062306,-653.03,0.00025753,7]
[344297106,1733331062319,-619.71,0.00025753,7]
[344297107,1733331062331,-1337.24,0.00025753,7]
[344297108,1733331062343,-1180.0,0.00025753,7]
[344297109,1733331062355,-500.0,0.00025753,7]
[344297110,1733331062368,-618.75,0.00025753,7]
[344297111,1733331062380,-500.0,0.00025753,7]
[344297112,1733331062392,-418.32301028,0.00025753,7]
[344297113,1733331062404,-1246.36,0.00025753,7]
[344297114,1733331062417,-729.23,0.00025753,7]
[344297115,1733331062429,-164.179794,0.00025753,7]
[344297116,1733331062441,-1111.43,0.00025753,7]
[344297117,1733331062453,-500.0,0.00025753,7]
[344297118,1733331062466,-164.179794,0.00025753,7]
[344297119,1733331062478,-688.99,0.00025753,7]
[344297120,1733331062490,-1165.34,0.00025753,7]
[344297121,1733331062506,-516.18,0.00025753,7]
[344297122,1733331062519,-771.77,0.00025753,7]
[344297123,1733331062532,-487.32135267,0.00025753,7]
[344297124,1733331062544,-151.0,0.00025759,7]
[344297125,1733331062557,-157.644442,0.000258,15]
[344297126,1733331062570,-823.0,0.0002582,2]
[344297127,1733331062583,-151.0,0.000259,18]
[344297128,1733331062595,-10000.0,0.00026,10]
[344297129,1733331062607,-511.63531746,0.00026,2]
[344297130,1733331062620,-294.151286,0.00026,7]
[344297131,1733331062632,-294.151286,0.00026,7]
[344297132,1733331062644,-210.25506,0.00026,7]
[344297133,1733331062656,-210.25506,0.00026,7]
[344297134,1733331062668,-1115.404548,0.00026,7]
[344297135,1733331062680,-1115.404548,0.00026,7]
[344297136,1733331062693,-1922.249001,0.00026,7]
[344297137,1733331062705,-1922.249001,0.00026,7]
[344297138,1733331062718,-2977.98551497,0.00026016,2]
[344297139,1733331062730,-160.0,0.00026026,2]
[344297140,1733331062742,-160.0,0.00026026,2]
[344297141,1733331062761,-151.0,0.00026026,7]
[344297142,1733331062774,-151.0,0.00026026,7]
[344297143,1733331062786,-151.0,0.00026026,7]
[344297144,1733331062799,-151.0,0.00026027,7]
[344297145,1733331062811,-182.152868,0.00026027,7]
[344297146,1733331062824,-151.0,0.00026027,7]
[344297147,1733331062836,-151.0,0.00026027,7]
[344297148,1733331062849,-151.0,0.00026027,7]
[344297149,1733331062862,-151.0,0.00026027,7]
[344297150,1733331062875,-151.0,0.00026027,7]
[344297151,1733331062889,-157.754633,0.00026027,7]
[344297152,1733331062902,-157.754633,0.00026027,7]
[344297153,1733331062916,-151.0,0.00026027,7]
[344297154,1733331062929,-151.0,0.00026027,7]
[344297155,1733331062943,-276.506524,0.00026027,7]
[344297156,1733331062956,-151.0,0.00026027,7]
[344297157,1733331062971,-276.506524,0.00026027,7]
[344297158,1733331062982,-500.0,0.00026027,7]
[344297159,1733331062996,-550.48,0.00026027,7]
[344297160,1733331063011,-663.28,0.00026027,7]
[344297161,1733331063025,-500.0,0.00026027,7]
[344297162,1733331063039,-647.17,0.00026027,7]
[344297163,1733331063054,-500.0,0.00026027,7]
[344297164,1733331063067,-500.0,0.00026027,2]
[344297165,1733331063081,-742.07,0.00026027,7]
[344297166,1733331063287,-500.0,0.00026027,7]
[344297167,1733331063299,-154.163264,0.00026027,7]
[344297168,1733331063311,-154.163264,0.00026027,7]
[344297169,1733331063324,-731.67,0.00026027,7]
[344297170,1733331063336,-500.0,0.00026027,7]
[344297171,1733331063348,-500.0,0.00026027,7]
[344297172,1733331063361,-794.46,0.00026027,7]
[344297173,1733331063372,-511.89521202,0.00026027,7]
[344297174,1733331063384,-369.173032,0.00026027,7]
[344297175,1733331063396,-500.0,0.00026027,7]
[344297176,1733331063407,-500.0,0.00026027,7]
[344297177,1733331063420,-369.173032,0.00026027,7]
[344297178,1733331063432,-500.0,0.00026027,7]
[344297179,1733331063443,-500.0,0.00026027,7]
[344297180,1733331063455,-523.72650331,0.00026027,7]
[344297181,1733331063467,-500.0,0.00026027,7]
[344297182,1733331063480,-501.59241138,0.00026027,7]
[344297183,1733331063491,-557.44,0.00026027,7]
[344297184,1733331063509,-190.77276469,0.00026027,7]
[344297185,1733331063524,-500.0,0.00026027,7]
[344297186,1733331063537,-500.0,0.00026027,7]
[344297187,1733331063550,-500.0,0.00026027,7]
[344297188,1733331063562,-438.91092585,0.00026027,7]
[344297189,1733331063574,-782.05,0.00026027,7]
[344297190,1733331063585,-500.0,0.00026027,7]
[344297191,1733331063596,-506.95630828,0.00026027,7]
[344297192,1733331063607,-500.0,0.00026027,7]
[344297193,1733331063619,-500.0,0.00026027,7]
[344297194,1733331063631,-500.0,0.00026027,7]
[344297195,1733331063642,-1159.1,0.00026027,7]
[344297196,1733331063653,-720.5,0.00026027,7]
[344297197,1733331063664,-500.0,0.00026027,7]
[344297198,1733331063675,-500.0,0.00026027,7]
[344297199,1733331063687,-500.0,0.00026027,7]
[344297200,1733331063698,-856.58,0.00026027,7]
[344297201,1733331063709,-500.0,0.00026027,7]
[344297202,1733331063720,-500.0,0.00026027,7]
[344297203,1733331063734,-501.88024791,0.00026027,7]
[344297204,1733331063745,-500.0,0.00026027,7]
[344297205,1733331063761,-1402.3,0.00026027,7]
[344297206,1733331063773,-500.0,0.00026027,7]
[344297207,1733331063783,-500.0,0.00026027,7]
[344297208,1733331063794,-500.0,0.00026027,7]
[344297209,1733331063804,-500.0,0.00026027,7]
[344297210,1733331063816,-500.0,0.00026027,7]
[344297211,1733331063827,-572.72,0.00026027,7]
[344297212,1733331063838,-692.0,0.00026027,7]
[344297213,1733331063848,-1434.53,0.00026027,7]
[344297214,1733331063858,-500.0,0.00026027,7]
[344297215,1733331063868,-500.0,0.00026027,7]
[344297216,1733331063886,-500.0,0.00026027,7]
[344297217,1733331063897,-1335.07,0.00026027,7]
[344297218,1733331063908,-1241.02,0.00026027,7]
[344297219,1733331063918,-1393.96,0.00026027,7]
[344297220,1733331063929,-500.0,0.00026027,7]
[344297221,1733331063939,-522.4,0.00026027,7]
[344297222,1733331063949,-500.0,0.00026027,7]
[344297223,1733331063960,-500.0,0.00026027,7]
[344297224,1733331063970,-500.0,0.00026027,7]
[344297225,1733331063982,-620.02,0.00026027,7]
[344297226,1733331063992,-518.78527956,0.00026027,7]
[344297227,1733331064006,-942.07,0.00026027,7]
[344297228,1733331064017,-500.0,0.00026027,7]
[344297229,1733331064029,-500.0,0.00026027,7]
[344297230,1733331064040,-501.38,0.00026027,7]
[344297231,1733331064051,-564.28,0.00026027,7]
[344297232,1733331064062,-264.24716709,0.00026027,7]
[344297233,1733331064073,-940.36,0.00026027,7]
[344297234,1733331064085,-500.0,0.00026027,7]
[344297235,1733331064096,-500.0,0.00026027,7]
[344297236,1733331064107,-500.0,0.00026027,7]
[344297237,1733331064118,-500.0,0.00026027,7]
[344297238,1733331064128,-175.86894784,0.00026027,7]
[344297239,1733331064138,-500.0,0.00026027,7]
[344297240,1733331064148,-500.0,0.00026027,7]
[344297241,1733331064159,-500.0,0.00026027,7]
[344297242,1733331064169,-500.0,0.00026027,7]
[344297243,1733331064180,-500.0,0.00026027,7]
[344297244,1733331064190,-350.73219758,0.00026027,7]
[344297245,1733331064200,-500.0,0.00026027,7]
[344297246,1733331064211,-541.2,0.00026027,7]
[344297247,1733331064221,-500.0,0.00026027,7]
[344297248,1733331064231,-668.95,0.00026027,7]
[344297249,1733331064242,-614.53,0.00026027,7]
[344297250,1733331064259,-500.0,0.00026027,7]
[344297251,1733331064270,-500.0,0.00026027,7]
[344297252,1733331064283,-732.18,0.00026027,7]
[344297253,1733331064295,-631.02282396,0.00026027,7]
[344297254,1733331064305,-500.0,0.00026027,7]
[344297255,1733331064317,-504.94576121,0.00026027,7]
[344297256,1733331064328,-500.0,0.00026027,7]
[344297257,1733331064339,-500.0,0.00026027,7]
[344297258,1733331064349,-504.43934891,0.00026027,7]
[344297259,1733331064360,-500.0,0.00026027,7]
[344297260,1733331064370,-500.0,0.00026027,7]
[344297261,1733331064380,-500.0,0.00026027,7]
[344297262,1733331064390,-500.0,0.00026027,7]
[344297263,1733331064400,-500.0,0.00026027,7]
[344297264,1733331064410,-500.0,0.00026027,7]
[344297265,1733331064420,-1219.41,0.00026027,7]
[344297266,1733331064430,-698.01,0.00026027,7]
[344297267,1733331064440,-500.0,0.00026027,7]
[344297268,1733331064450,-448.07594547,0.00026027,7]
[344297269,1733331064460,-2033.51,0.00026027,7]
[344297270,1733331064469,-500.0,0.00026027,7]
[344297271,1733331064479,-2896.6,0.00026027,7]
[344297272,1733331064489,-500.0,0.00026027,7]
[344297273,1733331064502,-500.0,0.00026027,7]
[344297274,1733331064513,-506.18436438,0.00026027,7]
[344297275,1733331064523,-500.0,0.00026027,7]
[344297276,1733331064533,-549.47,0.00026027,7]
[344297277,1733331064544,-500.0,0.00026027,7]
[344297278,1733331064554,-521.79,0.00026027,7]
[344297279,1733331064564,-500.0,0.00026027,7]
[344297280,1733331064574,-1363.71,0.00026027,7]
[344297281,1733331064584,-500.0,0.00026027,7]
[344297282,1733331064595,-650.65,0.00026027,7]
[344297283,1733331064605,-10576.83,0.00026027,7]
[344297284,1733331064615,-500.0,0.00026027,7]
[344297285,1733331064626,-500.65,0.00026027,7]
[344297286,1733331064636,-500.0,0.00026027,7]
[344297287,1733331064648,-684.15,0.00026027,7]
[344297288,1733331064659,-500.0,0.00026027,7]
[344297289,1733331064670,-500.0,0.00026027,7]
[344297290,1733331064681,-500.0,0.00026027,7]
[344297291,1733331064692,-500.0,0.00026027,7]
[344297292,1733331064703,-500.0,0.00026027,7]
[344297293,1733331064714,-1465.31,0.00026027,7]
[344297294,1733331064724,-792.7,0.00026027,7]
[344297295,1733331064734,-606.68,0.00026027,7]
[344297296,1733331064744,-1072.01,0.00026027,7]
[344297297,1733331064760,-500.0,0.00026027,7]
[344297298,1733331064770,-690.93,0.00026027,7]
[344297299,1733331064780,-500.0,0.00026027,7]
[344297300,1733331064790,-500.0,0.00026027,7]
[344297301,1733331064800,-200.0,0.00026027,7]
[344297302,1733331064810,-500.0,0.00026027,7]
[344297303,1733331064821,-1130.9,0.00026027,7]
[344297304,1733331064831,-766.18,0.00026027,7]
[344297305,1733331064842,-979.02,0.00026027,7]
[344297306,1733331064854,-500.0,0.00026027,7]
[344297307,1733331064864,-317.53408063,0.00026027,7]
[344297308,1733331064875,-5398.24,0.00026027,7]
[344297309,1733331064886,-500.0,0.00026027,7]
[344297310,1733331064899,-959.45,0.00026027,7]
[344297311,1733331064910,-637.8,0.00026027,7]
[344297312,1733331064920,-571.56,0.00026027,7]
[344297313,1733331064932,-500.0,0.00026027,7]
[344297314,1733331064945,-12106.03,0.00026027,7]
[344297315,1733331064956,-500.0,0.00026027,7]
[344297316,1733331064966,-500.0,0.00026027,7]
[344297317,1733331064976,-1073.97,0.00026027,7]
[344297318,1733331064986,-500.0,0.00026027,7]
[344297319,1733331064997,-500.0,0.00026027,7]
[344297320,1733331065012,-232.40022555,0.00026027,7]
[344297321,1733331065022,-3667.14,0.00026027,7]
[344297322,1733331065032,-500.0,0.00026027,7]
[344297323,1733331065042,-559.77824976,0.00026027,7]
[344297324,1733331065053,-500.0,0.00026027,7]
[344297325,1733331065063,-500.0,0.00026027,7]
[344297326,1733331065074,-500.0,0.00026027,7]
[344297327,1733331065085,-619.76,0.00026027,7]
[344297328,1733331065095,-500.0,0.00026027,7]
[344297329,1733331065106,-500.0,0.00026027,7]
[344297330,1733331065117,-500.0,0.00026027,7]
[344297331,1733331065128,-500.0,0.00026027,7]
[344297332,1733331065139,-425.71584422,0.00026027,7]
[344297333,1733331065149,-500.0,0.00026027,7]
[344297334,1733331065159,-1604.41,0.00026027,7]
[344297335,1733331065169,-500.0,0.00026027,7]
[344297336,1733331065179,-564.17,0.00026027,7]
[344297337,1733331065189,-2600.34,0.00026027,7]
[344297338,1733331065199,-653.89,0.00026027,7]
[344297339,1733331065209,-523.19,0.00026027,7]
[344297340,1733331065219,-500.0,0.00026027,7]
[344297341,1733331065229,-500.0,0.00026027,7]
[344297342,1733331065239,-500.0,0.00026027,7]
[344297343,1733331065252,-500.0,0.00026027,7]
[344297344,1733331065261,-500.0,0.00026027,7]
[344297345,1733331065271,-500.0,0.00026027,7]
[344297346,1733331065281,-2252.96,0.00026027,7]
[344297347,1733331065290,-1103.9,0.00026027,7]
[344297348,1733331065301,-200.0,0.00026027,7]
[344297349,1733331065312,-3483.6,0.00026027,7]
[344297350,1733331065322,-500.0,0.00026027,7]
[344297351,1733331065332,-998.79,0.00026027,7]
[344297352,1733331065342,-858.72,0.00026027,7]
[344297353,1733331065351,-1250.23,0.00026027,7]
[344297354,1733331065361,-500.0,0.00026027,7]
[344297355,1733331065371,-500.0,0.00026027,7]
[344297356,1733331065379,-1250.59,0.00026027,7]
[344297357,1733331065389,-674.47,0.00026027,7]
[344297358,1733331065399,-500.0,0.00026027,7]
[344297359,1733331065409,-1017.66,0.00026027,7]
[344297360,1733331065419,-1138.79,0.00026027,7]
[344297361,1733331065429,-634.97,0.00026027,7]
[344297362,1733331065439,-500.0,0.00026027,7]
[344297363,1733331065449,-500.0,0.00026027,7]
[344297364,1733331065585,-3400.47,0.00026027,7]
[344297365,1733331065595,-500.0,0.00026027,7]
[344297366,1733331065605,-500.0,0.00026027,7]
[344297367,1733331065615,-2026.96,0.00026027,7]
[344297368,1733331065626,-500.0,0.00026027,7]
[344297369,1733331065635,-500.0,0.00026027,7]
[344297370,1733331065645,-500.0,0.00026027,7]
[344297371,1733331065654,-483.36294289,0.00026027,7]
[344297372,1733331065664,-1041.8,0.00026027,7]
[344297373,1733331065674,-1115.9,0.00026027,7]
[344297374,1733331065683,-500.0,0.00026027,7]
[344297375,1733331065693,-591.81,0.00026027,7]
[344297376,1733331065704,-160.51209693,0.00026027,7]
[344297377,1733331065715,-653.03,0.00026027,7]
[344297378,1733331065724,-619.71,0.00026027,7]
[344297379,1733331065734,-1337.24,0.00026027,7]
[344297380,1733331065744,-1180.0,0.00026027,7]
[344297381,1733331065757,-500.0,0.00026027,7]
[344297382,1733331065767,-618.75,0.00026027,7]
[344297383,1733331065776,-500.0,0.00026027,7]
[344297384,1733331065786,-1246.36,0.00026027,7]
[344297385,1733331065796,-729.23,0.00026027,7]
[344297386,1733331065806,-1111.43,0.00026027,7]
[344297387,1733331065816,-384.97651018,0.00026027,7]
[344297388,1733331065825,-688.99,0.00026027,7]
[344297389,1733331065835,-1165.34,0.00026027,7]
[344297390,1733331065845,-516.18,0.00026027,7]
[344297391,1733331065855,-771.77,0.00026027,7]
[344297392,1733331065865,-156.14736058,0.00026096,2]
[344297393,1733331065878,-225.326649,0.00026177,2]
[344297394,1733331065888,-10000.0,0.000262,10]
[344297395,1733331065897,-238.736578,0.000262,7]
[344297396,1733331065907,-238.736578,0.000262,7]
[344297397,1733331065919,-151.0,0.000262,7]
[344297398,1733331065930,-2348.359385,0.000262,7]
[344297399,1733331065940,-2348.359385,0.000262,7]
[344297400,1733331065950,-612.787327,0.000262,7]
[344297401,1733331065960,-612.787327,0.000262,7]
[344297402,1733331065971,-164.179794,0.000262,7]
[344297403,1733331065982,-164.179794,0.000262,7]
[344297404,1733331065993,-1500.0,0.00026222,2]
[344297405,1733331066004,-164.382574,0.000263,7]
[344297406,1733331066015,-164.382574,0.000263,7]
[344297407,1733331066025,-160.0,0.000263,2]
[344297408,1733331066035,-160.0,0.000263,2]
[344297409,1733331066045,-151.0,0.00026301,7]
[344297410,1733331066056,-151.0,0.00026301,7]
[344297411,1733331066067,-151.0,0.00026301,7]
[344297412,1733331066077,-157.754633,0.00026301,7]
[344297413,1733331066088,-157.754633,0.00026301,7]
[344297414,1733331066097,-289.236586,0.00026301,7]
[344297415,1733331066108,-151.0,0.00026301,7]
[344297416,1733331066118,-276.506524,0.00026301,7]
[344297417,1733331066129,-151.0,0.00026301,7]
[344297418,1733331066139,-276.506524,0.00026301,7]
[344297419,1733331066150,-550.48,0.00026301,7]
[344297420,1733331066160,-663.28,0.00026301,7]
[344297421,1733331066169,-500.0,0.00026301,7]
[344297422,1733331066179,-647.17,0.00026301,7]
[344297423,1733331066189,-500.0,0.00026301,7]
[344297424,1733331066199,-336.09681163,0.00026301,2]
[344297425,1733331066208,-151.0,0.00026301,7]
[344297426,1733331066218,-742.07,0.00026301,7]
[344297427,1733331066228,-500.0,0.00026301,7]
[344297428,1733331066238,-731.67,0.00026301,7]
[344297429,1733331066247,-500.0,0.00026301,7]
[344297430,1733331066260,-230.5717144,0.00026301,7]
[344297431,1733331066270,-794.46,0.00026301,7]
[344297432,1733331066280,-151.0,0.00026301,7]
[344297433,1733331066289,-501.57192232,0.00026301,7]
[344297434,1733331066299,-428.45562402,0.00026301,7]
[344297435,1733331066309,-500.0,0.00026301,7]
[344297436,1733331066318,-500.0,0.00026301,7]
[344297437,1733331066327,-500.0,0.00026301,7]
[344297438,1733331066337,-557.44,0.00026301,7]
[344297439,1733331066347,-500.0,0.00026301,7]
[344297440,1733331066356,-500.0,0.00026301,7]
[344297441,1733331066365,-500.0,0.00026301,7]
[344297442,1733331066375,-782.05,0.00026301,7]
[344297443,1733331066385,-500.0,0.00026301,7]
[344297444,1733331066395,-500.0,0.00026301,7]
[344297445,1733331066404,-464.83242195,0.00026301,7]
[344297446,1733331066413,-500.0,0.00026301,7]
[344297447,1733331066422,-1159.1,0.00026301,7]
[344297448,1733331066432,-720.5,0.00026301,7]
[344297449,1733331066441,-500.0,0.00026301,7]
[344297450,1733331066451,-500.0,0.00026301,7]
[344297451,1733331066460,-500.0,0.00026301,7]
[344297452,1733331066470,-856.58,0.00026301,7]
[344297453,1733331066479,-500.0,0.00026301,7]
[344297454,1733331066489,-500.0,0.00026301,7]
[344297455,1733331066498,-1402.3,0.00026301,7]
[344297456,1733331066510,-500.0,0.00026301,7]
[344297457,1733331066520,-500.0,0.00026301,7]
[344297458,1733331066530,-500.0,0.00026301,7]
[344297459,1733331066540,-500.0,0.00026301,7]
[344297460,1733331066550,-500.0,0.00026301,7]
[344297461,1733331066559,-572.72,0.00026301,7]
[344297462,1733331066568,-692.0,0.00026301,7]
[344297463,1733331066577,-1434.53,0.00026301,7]
[344297464,1733331066586,-500.0,0.00026301,7]
[344297465,1733331066596,-500.0,0.00026301,7]
[344297466,1733331066605,-500.0,0.00026301,7]
[344297467,1733331066614,-1335.07,0.00026301,7]
[344297468,1733331066623,-1241.02,0.00026301,7]
[344297469,1733331066632,-1393.96,0.00026301,7]
[344297470,1733331066642,-155.08598897,0.00026301,7]
[344297471,1733331066651,-522.4,0.00026301,7]
[344297472,1733331066661,-500.0,0.00026301,7]
[344297473,1733331066670,-562.89558728,0.00026301,7]
[344297474,1733331066680,-500.0,0.00026301,7]
[344297475,1733331066689,-620.02,0.00026301,7]
[344297476,1733331066698,-942.07,0.00026301,7]
[344297477,1733331066708,-500.0,0.00026301,7]
[344297478,1733331066717,-500.0,0.00026301,7]
[344297479,1733331066726,-501.38,0.00026301,7]
[344297480,1733331066735,-940.36,0.00026301,7]
[344297481,1733331066744,-500.0,0.00026301,7]
[344297482,1733331066757,-500.0,0.00026301,7]
[344297483,1733331066769,-500.0,0.00026301,7]
[344297484,1733331066778,-500.0,0.00026301,7]
[344297485,1733331066788,-500.0,0.00026301,7]
[344297486,1733331066797,-500.0,0.00026301,7]
[344297487,1733331066808,-500.0,0.00026301,7]
[344297488,1733331066817,-500.0,0.00026301,7]
[344297489,1733331066827,-294.151286,0.00026301,7]
[344297490,1733331066837,-500.0,0.00026301,7]
[344297491,1733331066846,-541.2,0.00026301,7]
[344297492,1733331066856,-294.151286,0.00026301,7]
[344297493,1733331066866,-500.0,0.00026301,7]
[344297494,1733331066876,-668.95,0.00026301,7]
[344297495,1733331066885,-614.53,0.00026301,7]
[344297496,1733331066896,-210.25506,0.00026301,7]
[344297497,1733331066905,-500.0,0.00026301,7]
[344297498,1733331066915,-500.0,0.00026301,7]
[344297499,1733331066924,-732.18,0.00026301,7]
[344297500,1733331066934,-210.25506,0.00026301,7]
[344297501,1733331066944,-500.0,0.00026301,7]
[344297502,1733331066955,-500.0,0.00026301,7]
[344297503,1733331066966,-500.0,0.00026301,7]
[344297504,1733331066977,-500.0,0.00026301,7]
[344297505,1733331066988,-500.0,0.00026301,7]
[344297506,1733331066998,-500.0,0.00026301,7]
[344297507,1733331067007,-500.0,0.00026301,7]
[344297508,1733331067016,-500.0,0.00026301,7]
[344297509,1733331067025,-526.69788102,0.00026301,7]
[344297510,1733331067035,-1219.41,0.00026301,7]
[344297511,1733331067044,-698.01,0.00026301,7]
[344297512,1733331067054,-500.0,0.00026301,7]
[344297513,1733331067064,-2033.51,0.00026301,7]
[344297514,1733331067074,-500.0,0.00026301,7]
[344297515,1733331067083,-2896.6,0.00026301,7]
[344297516,1733331067094,-442.64545744,0.00026301,7]
[344297517,1733331067103,-500.0,0.00026301,7]
[344297518,1733331067113,-500.0,0.00026301,7]
[344297519,1733331067123,-549.47,0.00026301,7]
[344297520,1733331067132,-500.0,0.00026301,7]
[344297521,1733331067142,-521.79,0.00026301,7]
[344297522,1733331067151,-501.71384872,0.00026301,7]
[344297523,1733331067161,-1363.71,0.00026301,7]
[344297524,1733331067170,-500.0,0.00026301,7]
[344297525,1733331067180,-151.0,0.00026301,7]
[344297526,1733331067191,-151.0,0.00026301,7]
[344297527,1733331067200,-650.65,0.00026301,7]
[344297528,1733331067210,-10576.83,0.00026301,7]
[344297529,1733331067220,-500.0,0.00026301,7]
[344297530,1733331067229,-500.65,0.00026301,7]
[344297531,1733331067239,-500.0,0.00026301,7]
[344297532,1733331067249,-1115.404548,0.00026301,7]
[344297533,1733331067266,-1115.404548,0.00026301,7]
[344297534,1733331067276,-684.15,0.00026301,7]
[344297535,1733331067286,-500.0,0.00026301,7]
[344297536,1733331067296,-179.23744744,0.00026301,7]
[344297537,1733331067306,-500.0,0.00026301,7]
[344297538,1733331067315,-500.0,0.00026301,7]
[344297539,1733331067324,-1465.31,0.00026301,7]
[344297540,1733331067334,-792.7,0.00026301,7]
[344297541,1733331067343,-606.68,0.00026301,7]
[344297542,1733331067354,-1072.01,0.00026301,7]
[344297543,1733331067364,-500.0,0.00026301,7]
[344297544,1733331067373,-690.93,0.00026301,7]
[344297545,1733331067383,-500.0,0.00026301,7]
[344297546,1733331067521,-500.0,0.00026301,7]
[344297547,1733331067537,-200.0,0.00026301,7]
[344297548,1733331067548,-500.0,0.00026301,7]
[344297549,1733331067559,-1130.9,0.00026301,7]
[344297550,1733331067570,-766.18,0.00026301,7]
[344297551,1733331067580,-979.02,0.00026301,7]
[344297552,1733331067591,-500.0,0.00026301,7]
[344297553,1733331067601,-5398.24,0.00026301,7]
[344297554,1733331067611,-500.0,0.00026301,7]
[344297555,1733331067622,-959.45,0.00026301,7]
[344297556,1733331067631,-637.8,0.00026301,7]
[344297557,1733331067641,-571.56,0.00026301,7]
[344297558,1733331067652,-500.0,0.00026301,7]
[344297559,1733331067662,-12106.03,0.00026301,7]
[344297560,1733331067672,-500.0,0.00026301,7]
[344297561,1733331067682,-1073.97,0.00026301,7]
[344297562,1733331067692,-500.0,0.00026301,7]